bitfinex-derivatives/quotes_BTCF0:USTF0_20241128
["timestamp","ask_amount","ask_price","bid_price","bid_amount"]
[1732755465204,0.00962458,96481.0,96480.0,0.36092471]
[1732755468207,0.00962458,96481.0,96480.0,0.00012471]
[1732755468506,0.05722391,96481.0,96480.0,0.00012471]
[1732755469098,0.04182458,96481.0,96480.0,0.00012471]
[1732755470199,0.04140904,96481.0,96480.0,0.00012471]
[1732755472001,0.00920904,96481.0,96480.0,0.00012471]
[1732755473310,0.033,96486.0,96480.0,0.00012471]
[1732755473311,0.051768,96483.0,96480.0,0.00012471]
[1732755473517,0.42491125,96551.0,96480.0,0.00012471]
[1732755473518,0.10494249,96513.0,96493.0,0.01]
[1732755473715,0.57740648,96550.0,96512.0,0.7216]
[1732755473716,0.051742,96531.0,96512.0,0.7216]
[1732755473907,0.0627,96536.0,96530.0,0.7216]
[1732755474112,0.01297184,96535.0,96533.0,0.05174]
[1732755474418,0.00881184,96534.0,96533.0,0.05174]
[1732755474807,0.00881184,96534.0,96530.0,0.36152]
[1732755475010,0.01826275,96535.0,96522.0,0.3608]
[1732755475011,0.02291459,96533.0,96522.0,0.3608]
[1732755475208,0.051744,96527.0,96522.0,0.3608]
[1732755475408,0.01609236,96525.0,96522.0,0.3608]
[1732755475612,0.00881184,96524.0,96522.0,0.3608]
[1732755475810,0.00881184,96523.0,96522.0,0.3608]
[1732755476621,0.0254131,96523.0,96522.0,0.3608]
[1732755477529,0.0771591,96523.0,96522.0,0.3608]
[1732755478627,0.09325303,96523.0,96522.0,0.3608]
[1732755479527,0.0771591,96523.0,96522.0,0.3608]
[1732755479935,0.09264301,96523.0,96522.0,0.3608]
[1732755480133,0.07654883,96523.0,96522.0,0.3608]
[1732755480735,0.05175,96516.0,96514.0,0.3608]
[1732755480943,0.08810283,96515.0,96509.0,0.3608]
[1732755481237,0.051758,96501.0,96500.0,0.3608]
[1732755481533,0.07656083,96501.0,96500.0,0.3608]
[1732755482128,0.0324,96503.0,96500.0,0.3608]
[1732755482437,0.02523781,96502.0,96500.0,0.412558]
[1732755482634,0.04849981,96503.0,96500.0,0.412558]
[1732755482635,0.02523781,96501.0,96500.0,0.412558]
[1732755484539,0.02411784,96501.0,96500.0,0.412559]
[1732755484930,0.00927609,96501.0,96500.0,0.412559]
[1732755485334,0.00416,96504.0,96500.0,0.3608]
[1732755485530,0.00416,96504.0,96503.0,0.051757]
[1732755485937,0.02842001,96504.0,96503.0,0.051757]
[1732755487035,0.02842001,96504.0,96500.0,0.3608]
[1732755487233,0.02426001,96503.0,96500.0,0.3608]
[1732755487438,0.02426001,96502.0,96500.0,0.3608]
[1732755487641,0.02426001,96501.0,96500.0,0.3608]
[1732755490339,0.04036359,96501.0,96500.0,0.3608]
[1732755491230,0.05679605,96501.0,96500.0,0.3608]
[1732755491542,0.02426001,96501.0,96500.0,0.3608]
[1732755491744,0.04036437,96501.0,96494.0,0.00013203]
[1732755491947,0.02426001,96500.0,96497.0,0.05176]
[1732755492144,0.051758,96501.0,96497.0,0.05176]
[1732755492344,0.02858991,96500.0,96497.0,0.05176]
[1732755492643,0.02442991,96499.0,96497.0,0.05176]
[1732755492847,0.02442991,96498.0,96497.0,0.05176]
[1732755494241,0.02442991,96498.0,96494.0,0.00013203]
[1732755494242,0.07618991,96498.0,96494.0,0.00013203]
[1732755494444,0.05570621,96497.0,96494.0,0.00013203]
[1732755494738,0.02480621,96496.0,96494.0,0.05189403]
[1732755494941,0.02480621,96495.0,96494.0,0.05189403]
[1732755495743,0.02510985,96495.0,96494.0,0.05189403]
[1732755497750,0.02510985,96495.0,96494.0,0.54595605]
[1732755497751,0.00972998,96495.0,96494.0,0.54595605]
[1732755497947,0.01611096,96504.0,96503.0,0.051757]
[1732755498143,0.01611096,96510.0,96507.0,0.051755]
[1732755498344,0.01611096,96511.0,96509.0,0.412554]
[1732755498543,0.01543409,96510.0,96509.0,0.412554]
[1732755498744,0.01611096,96522.0,96521.0,0.051747]
[1732755498944,0.03154505,96522.0,96521.0,0.412547]
[1732755499345,0.01543409,96522.0,96521.0,0.412547]
[1732755502454,0.01543409,96525.0,96524.0,0.051746]
[1732755502653,0.00155459,96536.0,96535.0,0.05174]
[1732755502852,0.02168461,96536.0,96535.0,0.41254]
[1732755504749,0.03779384,96536.0,96535.0,0.41254]
[1732755505460,0.02168461,96536.0,96535.0,0.41254]
[1732755506148,0.02123545,96536.0,96535.0,0.41254]
[1732755507149,0.00571459,96536.0,96535.0,0.41254]
[1732755507459,0.00571459,96536.0,96535.0,0.3608]
[1732755507655,0.02127894,96536.0,96535.0,0.3608]
[1732755508853,0.00571459,96536.0,96535.0,0.3608]
[1732755510350,0.03039764,96536.0,96535.0,0.3608]
[1732755513659,0.03039764,96536.0,96535.0,0.41254]
[1732755516861,0.01520807,96536.0,96535.0,0.41254]
[1732755517366,0.03039764,96536.0,96535.0,0.41254]
[1732755519361,0.08213664,96536.0,96535.0,0.41254]
[1732755519569,0.08213664,96536.0,96535.0,0.3608]
[1732755520354,0.08213664,96536.0,96535.0,0.41254]
[1732755522265,0.08213664,96536.0,96535.0,0.38924702]
[1732755522956,0.03039764,96536.0,96535.0,0.38924702]
[1732755527371,0.01520807,96536.0,96535.0,0.38924702]
[1732755527566,0.01104807,96536.0,96535.0,0.38924702]
[1732755527788,0.00949348,96536.0,96535.0,0.38924702]
[1732755527969,0.00949348,96536.0,96535.0,0.63294813]
[1732755528470,0.00949348,96536.0,96535.0,0.38924702]
[1732755530977,0.00873308,96536.0,96535.0,0.38924702]
[1732755535776,0.00868143,96536.0,96535.0,0.38924702]
[1732755536178,0.00868147,96536.0,96535.0,0.38924702]
[1732755536386,0.02297281,96536.0,96535.0,0.38924702]
[1732755536768,0.02297281,96536.0,96535.0,0.63411639]
[1732755536968,0.02297281,96536.0,96535.0,0.38924702]
[1732755538175,0.02297281,96536.0,96535.0,0.63409999]
[1732755538978,0.02297281,96536.0,96535.0,0.38924702]
[1732755541299,0.02297281,96536.0,96535.0,0.31421481]
[1732755541300,0.02713281,96536.0,96535.0,0.31421481]
[1732755541586,0.06314104,96536.0,96535.0,0.31421481]
[1732755544581,0.06282199,96536.0,96535.0,0.31421481]
[1732755545283,0.11313846,96536.0,96535.0,0.31421481]
[1732755545485,0.05447647,96536.0,96535.0,0.31421481]
[1732755546484,0.06319013,96536.0,96535.0,0.31421481]
[1732755547383,0.01287366,96536.0,96535.0,0.31421481]
[1732755547885,0.01271146,96536.0,96535.0,0.31421481]
[1732755548183,0.00416,96536.0,96535.0,0.31421481]
[1732755548492,0.01271148,96536.0,96535.0,0.31421481]
[1732755548880,0.01287058,96536.0,96535.0,0.31421481]
[1732755552480,0.02736788,96536.0,96535.0,0.31421481]
[1732755554482,0.00416,96536.0,96535.0,0.31421481]
[1732755556089,0.00013121,96537.0,96535.0,0.31421481]
[1732755556090,0.00013121,96537.0,96536.0,0.051739]
[1732755558489,0.0084422,96537.0,96536.0,0.051739]
[1732755559491,0.00013121,96537.0,96536.0,0.051739]
[1732755559989,0.12422804,96537.0,96536.0,0.051739]
[1732755560182,0.00013121,96537.0,96536.0,0.362499]
[1732755560384,0.00013121,96537.0,96536.0,0.71012571]
[1732755560583,0.00013121,96537.0,96536.0,0.73922941]
[1732755560783,0.00013121,96537.0,96536.0,1.0341521]
[1732755561192,0.00013121,96537.0,96536.0,1.37091219]
[1732755561387,0.12409683,96553.0,96552.0,0.051731]
[1732755561592,0.17944,96576.0,96552.0,0.051731]
[1732755561593,0.12409683,96555.0,96554.0,0.05173]
[1732755561798,0.112921,96570.0,96554.0,0.05173]
[1732755561799,0.12409683,96556.0,96554.0,0.05173]
[1732755561986,0.12409683,96556.0,96555.0,0.49416723]
[1732755562186,0.06942683,96558.0,96556.0,0.051729]
[1732755562385,0.0312,96570.0,96569.0,0.051722]
[1732755562594,0.0312,96570.0,96569.0,0.773322]
[1732755565997,0.03,96580.0,96569.0,0.773322]
[1732755565998,0.03,96580.0,96579.0,0.051716]
[1732755566193,0.03,96580.0,96579.0,0.412516]
[1732755566389,0.03416,96580.0,96579.0,0.412516]
[1732755567998,0.0318,96584.0,96583.0,0.051714]
[1732755568200,0.0318,96584.0,96583.0,0.05178907]
[1732755568799,0.02,96586.0,96585.0,0.051713]
[1732755570895,0.02,96586.0,96585.0,0.362313]
[1732755571195,0.02,96586.0,96585.0,0.231113]
[1732755571399,0.02,96586.0,96585.0,0.051713]
[1732755571901,0.02,96586.0,96585.0,0.231113]
[1732755575297,0.02,96586.0,96585.0,0.281113]
[1732755575994,0.02416,96586.0,96585.0,0.281113]
[1732755576304,0.02416,96586.0,96585.0,0.101713]
[1732755576493,0.02416,96586.0,96583.0,0.01714447]
[1732755576694,0.051714,96583.0,96582.0,0.3608]
[1732755577697,0.051714,96583.0,96582.0,0.37713942]
[1732755579099,0.051714,96583.0,96582.0,0.00012623]
[1732755579299,0.02416,96586.0,96582.0,0.00012623]
[1732755579507,0.02416,96586.0,96584.0,0.051713]
[1732755579807,0.02,96586.0,96584.0,0.051713]
[1732755580013,0.02,96586.0,96584.0,0.362313]
[1732755580196,0.02,96586.0,96584.0,0.051713]
[1732755580699,0.02,96586.0,96585.0,0.6714]
[1732755581005,0.1,96600.0,96591.0,0.05171]
[1732755582810,0.1,96600.0,96591.0,0.36231]
[1732755583310,0.1,96600.0,96591.0,0.41251]
[1732755583502,0.0327,96599.0,96591.0,0.41251]
[1732755583697,0.0327,96599.0,96591.0,0.72311]
[1732755584309,0.0327,96599.0,96591.0,0.73956568]
[1732755584805,0.0327,96599.0,96591.0,0.91892568]
[1732755584999,0.00416,96598.0,96591.0,0.91892568]
[1732755585195,0.00416,96598.0,96591.0,0.60832568]
[1732755585402,0.00416,96598.0,96591.0,0.42896568]
[1732755585608,0.031,96597.0,96591.0,0.60832568]
[1732755585804,0.031,96597.0,96591.0,0.42896568]
[1732755586706,0.082707,96597.0,96591.0,0.42896568]
[1732755587013,0.051709,96593.0,96591.0,0.42896568]
[1732755587708,0.0318,96596.0,96591.0,0.42896568]
[1732755588311,0.05183134,96592.0,96591.0,0.42896568]
[1732755589713,0.00012234,96592.0,96591.0,0.42896568]
[1732755592810,0.00012234,96592.0,96591.0,0.37725568]
[1732755593011,0.00012234,96592.0,96591.0,0.01645568]
[1732755593205,0.00012234,96592.0,96585.0,0.18303837]
[1732755593414,0.051712,96587.0,96585.0,0.051713]
[1732755593914,0.00416,96586.0,96585.0,0.051713]
[1732755595711,0.01247485,96586.0,96585.0,0.051713]
[1732755596710,0.00416,96586.0,96585.0,0.051713]
[1732755598115,0.09708966,96586.0,96585.0,0.23475137]
[1732755598518,0.00416,96586.0,96585.0,0.051713]
[1732755600710,0.00012234,96592.0,96591.0,0.05171]
[1732755600911,0.00012234,96592.0,96591.0,0.59553122]
[1732755601111,0.00428234,96592.0,96591.0,0.41251]
[1732755601412,0.148921,96592.0,96591.0,0.54378804]
[1732755601617,0.05599134,96592.0,96591.0,0.54378804]
[1732755602012,0.05599134,96592.0,96591.0,0.3608]
[1732755602522,0.05599134,96592.0,96588.0,0.18298804]
[1732755602523,0.051711,96589.0,96588.0,0.18298804]
[1732755602814,0.051713,96585.0,96583.0,0.01694592]
[1732755603018,0.00856181,96584.0,96583.0,0.01618592]
[1732755603217,0.051714,96583.0,96582.0,0.00012623]
[1732755603411,0.051714,96583.0,96582.0,0.01625073]
[1732755603412,0.06027581,96583.0,96582.0,0.01625073]
[1732755603612,0.38683921,96583.0,96576.0,0.01626144]
[1732755603814,0.01272181,96582.0,96568.0,0.18298804]
[1732755604116,0.051721,96570.0,96568.0,0.051722]
[1732755604318,0.00856181,96569.0,96568.0,0.051722]
[1732755604621,0.00856181,96569.0,96568.0,0.05184608]
[1732755604622,0.01272181,96569.0,96568.0,0.05184608]
[1732755605816,0.00416,96569.0,96568.0,0.05184608]
[1732755606809,0.00416,96569.0,96568.0,0.00012408]
[1732755606810,0.03456,96569.0,96568.0,0.00012408]
[1732755608918,0.06716,96569.0,96568.0,0.00012408]
[1732755613118,0.06716,96569.0,96562.0,0.37694589]
[1732755613119,0.051725,96563.0,96562.0,0.01614589]
[1732755613322,0.17908,96566.0,96546.0,0.18288878]
[1732755613530,0.051728,96558.0,96553.0,0.05173]
[1732755614023,0.00416,96557.0,96553.0,0.05173]
[1732755614222,0.00416,96557.0,96546.0,0.18288878]
[1732755614223,0.03476,96557.0,96556.0,0.36092255]
[1732755614424,0.03476,96557.0,96556.0,0.37739438]
[1732755615020,0.09293223,96564.0,96556.0,0.37739438]
[1732755615021,0.051725,96563.0,96562.0,0.051725]
[1732755616914,0.051725,96563.0,96561.0,0.00761]
[1732755617120,0.17908,96562.0,96561.0,0.00761]
[1732755619020,0.051727,96558.0,96557.0,0.00692]
[1732755619521,0.051727,96558.0,96556.0,0.00012255]
[1732755619725,0.09709223,96557.0,96556.0,0.00012255]
[1732755619917,0.09709223,96557.0,96555.0,0.00098255]
[1732755619918,0.051729,96556.0,96555.0,0.00098255]
[1732755620117,0.17779151,96556.0,96555.0,0.00098255]
[1732755620314,0.085029,96556.0,96555.0,0.00098255]
[1732755620820,0.17776713,96556.0,96555.0,0.00098255]
[1732755621026,0.085029,96556.0,96555.0,0.00098255]
[1732755621616,0.17776713,96556.0,96555.0,0.00098255]
[1732755621820,0.085029,96556.0,96555.0,0.00098255]
[1732755622021,0.17775336,96556.0,96555.0,0.00098255]
[1732755622620,0.085029,96556.0,96555.0,0.00098255]
[1732755623129,0.17774544,96556.0,96555.0,0.00098255]
[1732755623321,0.00416,96557.0,96555.0,0.41351155]
[1732755625820,0.09272112,96575.0,96556.0,0.051728]
[1732755626021,0.00155391,96576.0,96574.0,0.051719]
[1732755626218,0.051718,96575.0,96574.0,0.051719]
[1732755626425,0.051718,96575.0,96567.0,0.3608]
[1732755626426,0.051722,96569.0,96567.0,0.3608]
[1732755626730,0.051723,96566.0,96565.0,0.3608]
[1732755628837,0.051723,96566.0,96555.0,0.00098255]
[1732755628838,0.362403,96566.0,96555.0,0.00098255]
[1732755629025,0.412529,96556.0,96555.0,0.00098255]
[1732755629230,0.591369,96556.0,96555.0,0.00098255]
[1732755629539,0.230569,96556.0,96555.0,0.00098255]
[1732755630524,0.35429602,96556.0,96555.0,0.00098255]
[1732755630734,0.230569,96556.0,96555.0,0.00098255]
[1732755631332,0.541289,96556.0,96555.0,0.00098255]
[1732755631931,0.051731,96552.0,96550.0,4.846e-05]
[1732755632332,0.36103648,96551.0,96550.0,4.846e-05]
[1732755632534,0.31072,96551.0,96550.0,4.846e-05]
[1732755633935,0.48956,96551.0,96550.0,4.846e-05]
[1732755634231,0.53987679,96551.0,96549.0,0.00026]
[1732755634426,0.051741,96533.0,96523.0,0.3608]
[1732755634632,0.14457171,96533.0,96523.0,0.3608]
[1732755634825,0.051741,96533.0,96523.0,0.3608]
[1732755635232,0.051741,96533.0,96528.0,0.00702]
[1732755635629,0.17551528,96533.0,96528.0,0.00702]
[1732755635829,0.051743,96529.0,96528.0,0.00702]
[1732755636031,0.412543,96529.0,96528.0,0.00702]
[1732755636232,0.051751,96514.0,96513.0,0.3608]
[1732755636433,0.051747,96521.0,96515.0,0.05175]
[1732755636740,0.17884,96524.0,96513.0,0.3608]
[1732755636741,0.09282497,96518.0,96513.0,0.3608]
[1732755636928,0.044721,96515.0,96513.0,0.3608]
[1732755637630,0.016363,96522.0,96504.0,0.0326]
[1732755637631,0.051756,96505.0,96504.0,0.0326]
[1732755637930,0.051756,96505.0,96503.0,0.36235434]
[1732755641029,0.00416,96507.0,96505.0,0.051756]
[1732755641635,0.00416,96507.0,96503.0,0.3608]
[1732755641831,0.051756,96505.0,96503.0,0.3608]
[1732755644728,0.00416,96506.0,96497.0,0.3608]
[1732755644936,0.05176,96498.0,96497.0,0.3608]
[1732755645632,0.00416,96506.0,96493.0,0.0326]
[1732755645838,0.051762,96495.0,96493.0,0.0326]
[1732755648333,0.051766,96487.0,96479.0,0.3608]
[1732755648534,0.051766,96487.0,96482.0,0.051768]
[1732755649331,0.051766,96487.0,96484.0,0.01605498]
[1732755650146,0.051766,96487.0,96481.0,0.0329]
[1732755650539,0.051766,96487.0,96481.0,0.04869054]
[1732755651639,0.051767,96484.0,96481.0,0.10045854]
[1732755651846,0.051768,96483.0,96481.0,0.10045854]
[1732755656942,0.051766,96487.0,96486.0,0.051766]
[1732755657135,0.17872,96493.0,96481.0,0.04869054]
[1732755657351,0.051768,96483.0,96482.0,0.051768]
[1732755657540,0.051768,96483.0,96481.0,0.04869054]
[1732755663649,0.051768,96483.0,96481.0,0.10045954]
[1732755664746,0.051768,96483.0,96482.0,0.01291916]
[1732755665747,0.051768,96483.0,96481.0,0.10045954]
[1732755665943,0.051768,96483.0,96481.0,0.04869054]
[1732755666546,0.051768,96483.0,96481.0,0.10045954]
[1732755667943,0.00416,96486.0,96479.0,0.24402829]
[1732755668251,0.051773,96473.0,96472.0,0.18336227]
[1732755668450,0.09300461,96477.0,96470.0,0.18336227]
[1732755668650,0.09300461,96473.0,96467.0,0.18336227]
[1732755668950,0.051776,96467.0,96465.0,0.18336227]
[1732755669140,0.051776,96467.0,96464.0,0.084078]
[1732755669339,0.051776,96467.0,96464.0,0.26744027]
[1732755669543,0.051777,96465.0,96464.0,0.26744027]
[1732755669751,0.051777,96465.0,96460.0,0.3608]
[1732755669752,0.051779,96461.0,96460.0,0.3608]
[1732755669952,0.00011165,96461.0,96460.0,0.18346095]
[1732755670157,0.05178,96460.0,96459.0,5.717e-05]
[1732755670749,0.41258,96460.0,96459.0,5.717e-05]
[1732755671051,0.85097601,96460.0,96440.0,0.54426095]
[1732755671252,0.85097601,96460.0,96430.0,0.3608]
[1732755671253,0.051787,96448.0,96431.0,0.18346095]
[1732755671548,0.051796,96431.0,96430.0,0.3608]
[1732755671743,0.051796,96431.0,96430.0,0.01293304]
[1732755672347,0.00416,96431.0,96414.0,0.06820968]
[1732755672552,0.3608,96427.0,96415.0,0.0129237]
[1732755672742,0.3608,96427.0,96414.0,0.01640468]
[1732755672743,0.051798,96426.0,96419.0,0.051802]
[1732755673051,0.0518,96423.0,96420.0,0.01307375]
[1732755673251,0.0518,96423.0,96421.0,0.01307375]
[1732755673444,0.0518,96423.0,96419.0,0.051802]
[1732755673445,0.3608,96427.0,96419.0,0.051802]
[1732755673646,0.051801,96421.0,96420.0,0.0130592]
[1732755674248,0.051801,96421.0,96419.0,0.051802]
[1732755674444,0.051801,96421.0,96419.0,0.412602]
[1732755674641,0.051799,96425.0,96420.0,0.01305154]
[1732755674952,0.00416,96431.0,96429.0,0.051796]
[1732755675252,0.051792,96439.0,96437.0,0.051792]
[1732755675449,0.051792,96439.0,96438.0,0.3608]
[1732755676550,0.1788,96443.0,96438.0,0.3608]
[1732755676755,0.051791,96440.0,96438.0,0.3608]
[1732755676955,0.051791,96440.0,96430.0,0.3608]
[1732755676956,0.051796,96431.0,96430.0,0.3608]
[1732755677144,0.0518,96423.0,96422.0,0.3608]
[1732755677346,0.0518,96424.0,96422.0,0.4126]
[1732755677847,0.00416,96427.0,96423.0,0.0518]
[1732755678456,0.00416,96427.0,96425.0,0.051798]
[1732755679359,0.055958,96427.0,96425.0,0.051798]
[1732755681154,0.00416,96427.0,96425.0,0.051798]
[1732755681954,0.00416,96437.0,96436.0,0.051793]
[1732755682154,0.00416,96448.0,96436.0,0.3608]
[1732755682353,0.00416,96448.0,96447.0,0.412587]
[1732755682551,0.00011165,96461.0,96447.0,0.3608]
[1732755682758,0.00011165,96461.0,96455.0,0.412583]
[1732755683657,0.051782,96457.0,96455.0,0.412583]
[1732755683957,0.051782,96457.0,96456.0,0.01342742]
[1732755684153,0.00011165,96461.0,96460.0,0.05178]
[1732755684557,0.00011165,96461.0,96455.0,0.3608]
[1732755684558,0.051781,96459.0,96455.0,0.3608]
[1732755684758,0.00011165,96461.0,96456.0,0.01342992]
[1732755684958,0.051781,96459.0,96457.0,0.01356278]
[1732755685150,0.051781,96459.0,96458.0,0.01356278]
[1732755685347,0.051781,96459.0,96455.0,0.3608]
[1732755685548,0.00416,96460.0,96458.0,0.051781]
[1732755685762,0.00011165,96461.0,96459.0,0.06534553]
[1732755685961,0.00011165,96461.0,96460.0,0.01356553]
[1732755686456,0.00427165,96461.0,96460.0,0.01356553]
[1732755687559,0.05605065,96461.0,96460.0,0.01356553]
[1732755688466,0.36507165,96461.0,96447.0,0.3608]
[1732755688757,0.051783,96455.0,96448.0,0.03629824]
[1732755689058,0.051783,96455.0,96449.0,0.03630342]
[1732755689266,0.051785,96451.0,96450.0,0.01396285]
[1732755689456,0.051785,96451.0,96440.0,0.00155514]
[1732755689457,0.5394,96451.0,96440.0,0.00155514]
[1732755689759,0.05179,96442.0,96441.0,0.01397632]
[1732755689950,0.05179,96442.0,96440.0,0.00155514]
[1732755690151,0.00416,96441.0,96440.0,0.00155514]
[1732755691056,0.31524,96441.0,96440.0,0.00155514]
[1732755691257,0.00416,96441.0,96440.0,0.00155514]
[1732755692955,0.00416,96441.0,96418.0,0.3937]
[1732755692956,0.31524,96441.0,96418.0,0.3937]
[1732755693156,0.3608,96431.0,96419.0,0.03616347]
[1732755693457,0.1786,96430.0,96420.0,0.03616347]
[1732755693657,0.051799,96425.0,96421.0,0.01390903]
[1732755693960,0.051799,96425.0,96422.0,0.01390903]
[1732755694159,0.051799,96425.0,96423.0,0.01390903]
[1732755694457,0.051799,96425.0,96424.0,0.01390903]
[1732755694660,0.18276,96430.0,96424.0,0.01390903]
[1732755694864,0.18276,96430.0,96418.0,0.3937]
[1732755694865,0.17864,96429.0,96428.0,0.051797]
[1732755695159,0.17864,96429.0,96428.0,0.06570603]
[1732755695364,0.17864,96429.0,96428.0,0.01385912]
[1732755695956,0.17864,96429.0,96428.0,0.01385896]
[1732755696465,0.051792,96438.0,96431.0,0.051795]
[1732755696657,0.051792,96438.0,96428.0,0.03608522]
[1732755696658,0.00416,96440.0,96436.0,0.051792]
[1732755696857,0.055951,96440.0,96437.0,0.01389038]
[1732755697051,0.00416,96440.0,96430.0,0.051796]
[1732755697365,0.00416,96440.0,96431.0,0.03600761]
[1732755697366,0.051792,96439.0,96431.0,0.03600761]
[1732755697551,0.051792,96439.0,96432.0,0.01384392]
[1732755697752,0.051794,96434.0,96433.0,0.01384392]
[1732755697963,0.00416,96440.0,96427.0,0.3608]
[1732755698163,0.051797,96429.0,96428.0,0.01365557]
[1732755698355,0.051793,96436.0,96428.0,0.01365557]
[1732755698666,0.051793,96436.0,96432.0,0.051795]
[1732755698872,0.051793,96436.0,96433.0,0.01365557]
[1732755699062,0.00416,96440.0,96427.0,0.3608]
[1732755699063,0.051794,96434.0,96427.0,0.3608]
[1732755699270,0.051794,96434.0,96428.0,0.08732015]
[1732755699566,0.051794,96434.0,96429.0,0.01366345]
[1732755699759,0.051794,96434.0,96430.0,0.01366345]
[1732755699962,0.051794,96434.0,96431.0,0.01366345]
[1732755700161,0.051794,96434.0,96432.0,0.01366345]
[1732755700467,0.051794,96434.0,96433.0,0.01366345]
[1732755702062,0.230434,96434.0,96433.0,0.01366345]
[1732755702363,0.1828,96434.0,96433.0,0.01366345]
[1732755702557,0.00416,96434.0,96433.0,0.01366345]
[1732755702756,0.00416,96434.0,96433.0,0.06545845]
[1732755703160,0.00416,96434.0,96433.0,0.08813524]
[1732755704162,0.00416,96434.0,96433.0,0.03634024]
[1732755704360,0.36496,96434.0,96433.0,0.01366345]
[1732755704762,0.39516,96434.0,96433.0,0.01690246]
[1732755707666,0.70624,96434.0,96433.0,0.00323901]
[1732755707863,0.83010193,96434.0,96409.0,0.18345455]
[1732755708062,0.83010193,96434.0,96410.0,0.03961682]
[1732755708063,0.051799,96425.0,96410.0,0.03961682]
[1732755708265,0.051805,96414.0,96411.0,0.03961682]
[1732755708562,0.051805,96414.0,96412.0,0.03961682]
[1732755708763,0.051805,96414.0,96413.0,0.03961682]
[1732755709165,0.051805,96414.0,96413.0,0.02613303]
[1732755709367,0.051805,96414.0,96413.0,0.04044169]
[1732755709563,0.051805,96414.0,96411.0,0.23526055]
[1732755709765,0.051805,96414.0,96412.0,0.04043572]
[1732755710065,0.051803,96418.0,96413.0,0.04043572]
[1732755710261,0.051803,96418.0,96408.0,0.3608]
[1732755710262,0.051803,96418.0,96414.0,0.09224072]
[1732755710456,0.051803,96417.0,96415.0,0.04043572]
[1732755710662,0.051803,96417.0,96416.0,0.04043572]
[1732755711465,0.1854,96424.0,96416.0,0.04043572]
[1732755711767,0.1854,96424.0,96417.0,0.09223872]
[1732755712069,0.051802,96420.0,96418.0,0.04043572]
[1732755712365,0.051802,96420.0,96408.0,0.54501455]
[1732755712366,0.051802,96420.0,96419.0,0.04043572]
[1732755712671,0.051802,96420.0,96419.0,0.04116603]
[1732755715369,0.237242,96420.0,96419.0,0.04116603]
[1732755716068,0.237242,96420.0,96419.0,0.04093627]
[1732755718173,0.33015854,96420.0,96419.0,0.04093627]
[1732755718374,0.237242,96420.0,96419.0,0.04093627]
[1732755718567,0.051802,96420.0,96419.0,0.04093627]
[1732755718768,0.237242,96420.0,96419.0,0.04093627]
[1732755719166,0.237242,96420.0,96419.0,0.02615357]
[1732755719473,0.237242,96420.0,96419.0,0.04047506]
[1732755719772,0.051802,96420.0,96419.0,0.04047506]
[1732755720069,0.237242,96420.0,96419.0,0.04047506]
[1732755721076,0.36110393,96420.0,96419.0,0.01756067]
[1732755721274,0.237242,96420.0,96419.0,0.01756067]
[1732755721775,0.237242,96420.0,96419.0,0.01743417]
[1732755721967,0.237242,96420.0,96419.0,0.00323918]
[1732755722167,0.237242,96420.0,96419.0,0.01754871]
[1732755722363,0.237242,96420.0,96419.0,0.00323918]
[1732755722574,0.05181,96405.0,96404.0,0.18345455]
[1732755722777,0.08917039,96409.0,96404.0,0.21153422]
[1732755722973,0.051809,96406.0,96405.0,0.02807967]
[1732755723283,0.412609,96406.0,96405.0,0.02807967]
[1732755723476,0.412609,96406.0,96405.0,0.00518329]
[1732755723865,0.051812,96401.0,96400.0,0.10072]
[1732755724072,0.051812,96401.0,96400.0,0.12288665]
[1732755724273,0.051812,96401.0,96400.0,0.1]
[1732755724975,0.0519186,96401.0,96400.0,0.1]
[1732755727574,0.2373586,96401.0,96400.0,0.1]
[1732755728177,0.25322607,96401.0,96400.0,0.1]
[1732755729274,0.37707646,96401.0,96400.0,0.1]
[1732755729472,0.68827646,96401.0,96389.0,0.00155616]
[1732755729675,0.051818,96390.0,96389.0,0.00155616]
[1732755730075,0.121478,96390.0,96378.0,0.3608]
[1732755730271,0.051824,96379.0,96378.0,0.3608]
[1732755731082,0.051824,96379.0,96378.0,0.37660217]
[1732755731382,0.051824,96379.0,96378.0,0.40037461]
[1732755731888,0.18548,96383.0,96381.0,0.051822]
[1732755732078,0.00416,96390.0,96378.0,0.37660217]
[1732755732277,0.18548,96388.0,96384.0,0.051821]
[1732755732585,0.05182,96387.0,96378.0,0.37660217]
[1732755732780,0.05182,96387.0,96379.0,0.02377163]
[1732755733087,0.05182,96387.0,96382.0,0.051822]
[1732755733385,0.05182,96386.0,96382.0,0.051822]
[1732755733572,0.18548,96388.0,96382.0,0.051822]
[1732755733773,0.05182,96385.0,96382.0,0.051822]
[1732755734373,0.05182,96385.0,96383.0,0.02393546]
[1732755734579,0.05182,96385.0,96382.0,0.051822]
[1732755734580,0.05182,96385.0,96384.0,0.03889096]
[1732755734779,0.05182,96385.0,96384.0,0.04731598]
[1732755734981,0.18548,96388.0,96384.0,0.04731598]
[1732755735181,0.20144856,96388.0,96385.0,0.09944335]
[1732755735482,0.20144856,96388.0,96386.0,0.04762335]
[1732755735676,0.20144856,96388.0,96387.0,0.02338308]
[1732755736788,0.00416,96393.0,96387.0,0.02338308]
[1732755736988,0.00416,96393.0,96391.0,0.051817]
[1732755737173,0.00416,96393.0,96388.0,0.09037566]
[1732755737174,0.0001066,96401.0,96392.0,0.08747992]
[1732755737383,0.0001066,96401.0,96399.0,0.051812]
[1732755737588,0.0001066,96401.0,96400.0,0.04755524]
[1732755737881,0.05181,96404.0,96400.0,0.04755524]
[1732755737882,0.04450784,96404.0,96400.0,0.04755524]
[1732755738085,0.04450784,96404.0,96402.0,0.051811]
[1732755738285,0.04450784,96404.0,96403.0,0.04755524]
[1732755738495,0.23286784,96404.0,96403.0,0.04755524]
[1732755739087,0.25022465,96404.0,96403.0,0.04755524]
[1732755739593,0.20571681,96404.0,96403.0,0.04755524]
[1732755739888,0.00107666,96404.0,96403.0,0.07295499]
[1732755740079,0.00107666,96404.0,96403.0,0.08267324]
[1732755740684,0.00107666,96404.0,96403.0,0.07295499]
[1732755741086,0.00107666,96404.0,96403.0,0.0697146]
[1732755741288,0.7964,96426.0,96424.0,0.051799]
[1732755741481,0.18836,96425.0,96424.0,0.051799]